Workbook

Sheet Core Stationing
F1: Bituminous Core Stationing | AH1: Asphalt
F2: =IF(L8="Yes","with Longitudinal Joint Density","") -> with Longitudinal Joint Density | W2: Drop Down Box Lists | Z2: County | AE2: Show | AF2: Type | AG2: Mix | AH2: Binder | AL2: Density
D3: 2012-08-13 | L3: Specification Year: 2012 | W3: Project | X3: Road Type | Y3: LJD? | Z3: Number | AA3: County | AB3: Tons | AC3: Lots | AD3: Direction | AE3: Companion Cores? | AF3: of | AG3: Type | AH3: Grade | AI3: Lift | AJ3: Direction | AK3: Lane | AL3: Determination
W4: SP | X4: TH | Y4: Yes | AB4: 0.1 | AC4: 0 | AD4: =IF(E10<F10,1,IF(E10=F10,0,IF(E10>F10,-1,"NOT"))) -> 1 | AE4: All | AF4: Joint | AI4: 1st
D5: SP | H5: TH | L5: Engineer | W5: SAP | X5: CSAH | Y5: No | Z5: 1 | AA5: Aitkin | AB5: 1 | AC5: 1 | AD5: 0 | AE5: 1 per Lot | AG5: SPWEA230 | AH5: B= PG 58-28 | AI5: 2nd | AJ5: NB | AK5: Mainline | AL5: No
D6: Contractor | H6: Plant | W6: CP | X6: CR | Z6: 2 | AA6: Anoka | AB6: 601 | AC6: 2 | AD6: 0 | AE6: No | AF6: Confined | AG6: SPWEA240 | AH6: C= PG 58-34 | AI6: 3rd | AJ6: SB | AK6: Left | AL6: Yes
Z7: 3 | AA7: Becker | AB7: 1001 | AC7: 3 | AD7: 0 | AF7: Unconfined | AG7: SPWEA330 | AH7: E= PG 64-28 | AI7: 4th | AJ7: EB | AK7: Right
B8: Lift | C8: Direction | D8: Lane | E8: Begin Station | F8: End Station | G8: Lane Width | I8: Longitudinal Joint Density Project? | L8: Yes | M8: Date Paved | Z8: 4 | AA8: Beltrami | AB8: 1601 | AC8: 4 | AD8: 0 | AG8: SPWEA340 | AH8: F= PG 64-34 | AI8: 5th | AJ8: WB | AK8: Left Center
E9: (ft) | F9: (ft) | G9: (ft) | I9: 1% Density Reduction? | L9: No | M9: Day # | Z9: 5 | AA9: Benton | AB9: 2601 | AC9: 5 | AD9: 0 | AG9: SPWEA430 | AH9: L= PG 64-22 | AI9: 6th | AK9: Right Center
B10: 1st | C10: NB | D10: Driving | E10: 0 | F10: 30000 | G10: 12 | M10: Date Cored | Z10: 6 | AA10: Big Stone | AB10: 4601 | AC10: 6 | AD10: 0 | AG10: SPWEA440 | AH10: A= PG 52-34 | AI10: 7th | AK10: Center
I11: Total Density Tons Paved | K11: 500 | Z11: 7 | AA11: Blue Earth | AB11: 5501 | AC11: 7 | AD11: 0 | AG11: SPWEA530 | AH11: H= PG 70-28 | AK11: Left Shldr
I12: Tons Per Lot | K12: =K11/K14 -> 500 | M12: MDR/Rec# | Z12: 8 | AA12: Brown | AB12: 6401 | AC12: 8 | AD12: 0 | AG12: SPWEA540 | AK12: Right Shldr
I13: Lots Used for Calcuations | K13: =IF(((ISNUMBER(K15))=TRUE),(K15),(VLOOKUP(K11,AB5:AC14,2))) -> 1 | M13: Bid Price/Ton | Z13: 9 | AA13: Carlton | AB13: 7301 | AC13: 9 | AD13: 0 | AG13: SPWEB230 | AK13: Rt. Turn Lane
I14: Lots Required | K14: =VLOOKUP(K11,AB4:AC14,2) -> 1 | Z14: 10 | AA14: Carver | AB14: 8201 | AC14: 10 | AG14: SPWEB240 | AK14: Lt. Turn Lane
I15: Over-ride # Lots | Z15: 11 | AA15: Cass | AG15: SPWEB330 | AK15: Ramp
Z16: 12 | AA16: Chippewa | AG16: SPWEB340 | AK16: Loop
L17: Mix Spec | N17: 2360 | Z17: 13 | AA17: Chisago | AG17: SPWEB430
H18: Test Companion | L18: Mix Type | N18: SPWEB340 | Z18: 14 | AA18: Clay | AG18: SPWEB440
H19: Cores Shown? | J19: 1 per Lot | L19: Asphalt Binder Grade | N19: C= PG 58-34 | Z19: 15 | AA19: Clearwater | AG19: SPWEB530
L20: Total Area Paved (yd2) | N20: =$J$95/9 -> 40000 | Z20: 16 | AA20: Cook | AG20: SPWEB540
Z21: 17 | AA21: Cottonwood | AG21: SPWEC230
J22: Left | K22: =IF($L$8="Yes","Left","") -> Left | L22: =IF($L$8="Yes","Left","") -> Left | M22: Right | N22: =IF($L$8="Yes","Right","") -> Right | O22: =IF($L$8="Yes","Right","") -> Right | Z22: 18 | AA22: Crow Wing | AG22: SPWEC240
C23: Mat | E23: Mat | F23: Mat | G23: Mat | H23: Mat | I23: Test | J23: LJD | K23: =IF($L$8="Yes","LJD","") -> LJD | L23: =IF($L$8="Yes","LJD","") -> LJD | M23: LJD | N23: =IF($L$8="Yes","LJD","") -> LJD | O23: =IF($L$8="Yes","LJD","") -> LJD | Z23: 19 | AA23: Dakota | AG23: SPWEC330
C24: Core | D24: Name | E24: Core | F24: Station | G24: Offset | H24: Offset | I24: Companion | J24: Joint | K24: =IF($L$8="Yes","Core","") -> Core | L24: =IF($L$8="Yes","Offset","") -> Offset | M24: Joint | N24: =IF($L$8="Yes","Core","") -> Core | O24: =IF($L$8="Yes","Offset","") -> Offset | Z24: 20 | AA24: Dodge | AG24: SPWEC340
B25: Lot | C25: ID | E25: Station | F25: Random # | G25: (ft.) | H25: Random # | I25: Core | J25: Type | K25: =IF($L$8="Yes","ID","") -> ID | L25: =IF($L$8="Yes","(ft.)","") -> (ft.) | M25: Type | N25: =IF($L$8="Yes","ID","") -> ID | O25: =IF($L$8="Yes","(ft.)","") -> (ft.) | Z25: 21 | AA25: Douglas | AG25: SPWEC430
B26: 1 | C26: =IF(B26="","",B26+0.1) -> 1.1 | D26: =IF($K$13>=1,$E$110,"") -> Driving, 1st Lift, NB | E26: =IF($K$13>=1,$E$109,"") -> 17330.99878 | F26: =IF(C26="","",$E$100) -> 0.5776999593 | G26: =$P$186 -> 3.160429001 | H26: =IF(C26="","",G186) -> 0.2633690834 | I26: =IF(ISNUMBER($B26),(IF($J$19="All","Y",IF(AND($J$19="1 per Lot",$F123="Y"),$F123,""))),"") ->  | K26: =S186 ->  | L26: =T186 ->  | N26: =U186 ->  | O26: =V186 ->  | Z26: 22 | AA26: Faribault | AG26: SPWEC440
C27: =IF(B26="","",B26+0.2) -> 1.2 | D27: =IF($K$13>=1,$F$110,"") -> Driving, 1st Lift, NB | E27: =IF($K$13>=1,$F$109,"") -> 5950.162411 | F27: =IF(C27="","",$F$100) -> 0.198338747 | G27: =$P$187 -> 4 | H27: 0.2342879176 | I27: =IF(ISNUMBER($B26),(IF($J$19="All","Y",IF(AND($J$19="1 per Lot",$F124="Y"),$F124,""))),"") -> Y | K27: 1.3 | L27: Core 0.5 ft. from Left Edge | N27: 1.4 | O27: Core 0.5 ft. from Right Edge | Z27: 23 | AA27: Fillmore | AG27: SPWEC530
B28: =IF($K$13>=2,B26+1,"") ->  | C28: =IF(B28="","",B28+0.1) ->  | D28: =IF($K$13>=2,$G$110,"") ->  | E28: =IF($K$13>=2,$G$109,"") ->  | F28: =IF(C28="","",$G$100) ->  | G28: =$P$188 ->  | I28: =IF(ISNUMBER($B28),(IF($J$19="All","Y",IF(AND($J$19="1 per Lot",$F125="Y"),$F125,""))),"") ->  | Z28: 24 | AA28: Freeborn | AG28: SPWEC540
C29: =IF(B28="","",B28+0.2) ->  | D29: =IF($K$13>=2,$H$110,"") ->  | E29: =IF($K$13>=2,$H$109,"") ->  | F29: =IF(C29="","",$H$100) ->  | G29: =$P$189 ->  | I29: =IF(ISNUMBER($B28),(IF($J$19="All","Y",IF(AND($J$19="1 per Lot",$F126="Y"),$F126,""))),"") ->  | Z29: 25 | AA29: Goodhue | AG29: SPNWA230
B30: =IF($K$13>=3,B28+1,"") ->  | C30: =IF(B30="","",B30+0.1) ->  | D30: =IF($K$13>=3,$I$110,"") ->  | E30: =IF($K$13>=3,$I$109,"") ->  | F30: =IF(C30="","",$I$100) ->  | G30: =$P$190 ->  | I30: =IF(ISNUMBER($B30),(IF($J$19="All","Y",IF(AND($J$19="1 per Lot",$F127="Y"),$F127,""))),"") ->  | Z30: 26 | AA30: Grant | AG30: SPNWA240
C31: =IF(B30="","",B30+0.2) ->  | D31: =IF($K$13>=3,$J$110,"") ->  | E31: =IF($K$13>=3,$J$109,"") ->  | F31: =IF(C31="","",$J$100) ->  | G31: =$P$191 ->  | I31: =IF(ISNUMBER($B30),(IF($J$19="All","Y",IF(AND($J$19="1 per Lot",$F128="Y"),$F128,""))),"") ->  | Z31: 27 | AA31: Hennepin | AG31: SPNWA330
B32: =IF($K$13>=4,B30+1,"") ->  | C32: =IF(B32="","",B32+0.1) ->  | D32: =IF($K$13>=4,$K$110,"") ->  | E32: =IF($K$13>=4,$K$109,"") ->  | F32: =IF(C32="","",$K$100) ->  | G32: =$P$192 ->  | I32: =IF(ISNUMBER($B32),(IF($J$19="All","Y",IF(AND($J$19="1 per Lot",$F129="Y"),$F129,""))),"") ->  | Z32: 28 | AA32: Houston | AG32: SPNWA340
C33: =IF(B32="","",B32+0.2) ->  | D33: =IF($K$13>=4,$L$110,"") ->  | E33: =IF($K$13>=4,$L$109,"") ->  | F33: =IF(C33="","",$L$100) ->  | G33: =$P$193 ->  | I33: =IF(ISNUMBER($B32),(IF($J$19="All","Y",IF(AND($J$19="1 per Lot",$F130="Y"),$F130,""))),"") ->  | Z33: 29 | AA33: Hubbard | AG33: SPNWA430
B34: =IF($K$13>=5,B32+1,"") ->  | C34: =IF(B34="","",B34+0.1) ->  | D34: =IF($K$13>=5,$M$110,"") ->  | E34: =IF($K$13>=5,$M$109,"") ->  | F34: =IF(C34="","",$M$100) ->  | G34: =$P$194 ->  | I34: =IF(ISNUMBER($B34),(IF($J$19="All","Y",IF(AND($J$19="1 per Lot",$F131="Y"),$F131,""))),"") ->  | Z34: 30 | AA34: Isanti | AG34: SPNWA440
C35: =IF(B34="","",B34+0.2) ->  | D35: =IF($K$13>=5,$N$110,"") ->  | E35: =IF($K$13>=5,$N$109,"") ->  | F35: =IF(C35="","",$N$100) ->  | G35: =$P$195 ->  | I35: =IF(ISNUMBER($B34),(IF($J$19="All","Y",IF(AND($J$19="1 per Lot",$F132="Y"),$F132,""))),"") ->  | Z35: 31 | AA35: Itasca | AG35: SPNWA530
B36: =IF($K$13>=6,B34+1,"") ->  | C36: =IF(B36="","",B36+0.1) ->  | D36: =IF($K$13>=6,$O$110,"") ->  | E36: =IF($K$13>=6,$O$109,"") ->  | F36: =IF(C36="","",$O$100) ->  | G36: =$P$196 ->  | I36: =IF(ISNUMBER($B36),(IF($J$19="All","Y",IF(AND($J$19="1 per Lot",$F133="Y"),$F133,""))),"") ->  | K36: =S196 ->  | L36: =T196 ->  | N36: =U196 ->  | O36: =V196 ->  | Z36: 32 | AA36: Jackson | AG36: SPNWA540
C37: =IF(B36="","",B36+0.2) ->  | D37: =IF($K$13>=6,$P$110,"") ->  | E37: =IF($K$13>=6,$P$109,"") ->  | F37: =IF(C37="","",$P$100) ->  | G37: =$P$197 ->  | I37: =IF(ISNUMBER($B36),(IF($J$19="All","Y",IF(AND($J$19="1 per Lot",$F134="Y"),$F134,""))),"") ->  | K37: =S197 ->  | L37: =T197 ->  | N37: =U197 ->  | O37: =V197 ->  | Z37: 33 | AA37: Kanabec | AG37: SPNWB230
B38: =IF($K$13>=7,B36+1,"") ->  | C38: =IF(B38="","",B38+0.1) ->  | D38: =IF($K$13>=7,$O$110,"") ->  | E38: =IF($K$13>=7,$Q$109,"") ->  | F38: =IF(C38="","",$Q$100) ->  | G38: =$P$198 ->  | I38: =IF(ISNUMBER($B38),(IF($J$19="All","Y",IF(AND($J$19="1 per Lot",$F135="Y"),$F135,""))),"") ->  | K38: =S198 ->  | L38: =T198 ->  | N38: =U198 ->  | Z38: 34 | AA38: Kanndiyohi | AG38: SPNWB240
C39: =IF(B38="","",B38+0.2) ->  | D39: =IF($K$13>=7,$P$110,"") ->  | E39: =IF($K$13>=7,$R$109,"") ->  | F39: =IF(C39="","",$R$100) ->  | G39: =$P$199 ->  | I39: =IF(ISNUMBER($B38),(IF($J$19="All","Y",IF(AND($J$19="1 per Lot",$F136="Y"),$F136,""))),"") ->  | N39: =U199 ->  | Z39: 35 | AA39: Kittson | AG39: SPNWB330
B40: =IF($K$13>=8,B38+1,"") ->  | C40: =IF(B40="","",B40+0.1) ->  | D40: =IF($K$13>=8,$O$110,"") ->  | E40: =IF($K$13>=8,$S$109,"") ->  | F40: =IF(C40="","",$S$100) ->  | G40: =$P$200 ->  | I40: =IF(ISNUMBER($B40),(IF($J$19="All","Y",IF(AND($J$19="1 per Lot",$F137="Y"),$F137,""))),"") ->  | N40: =U200 ->  | Z40: 36 | AA40: Koochiching | AG40: SPNWB340
C41: =IF(B40="","",B40+0.2) ->  | D41: =IF($K$13>=8,$P$110,"") ->  | E41: =IF($K$13>=8,$T$109,"") ->  | F41: =IF(C41="","",$T$100) ->  | G41: =$P$201 ->  | I41: =IF(ISNUMBER($B40),(IF($J$19="All","Y",IF(AND($J$19="1 per Lot",$F138="Y"),$F138,""))),"") ->  | N41: =U201 ->  | Z41: 37 | AA41: Lac qui Parle | AG41: SPNWB430
B42: =IF($K$13>=9,B40+1,"") ->  | C42: =IF(B42="","",B42+0.1) ->  | D42: =IF($K$13>=9,$O$110,"") ->  | E42: =IF($K$13>=9,$U$109,"") ->  | F42: =IF(C42="","",$U$100) ->  | G42: =$P$202 ->  | I42: =IF(ISNUMBER($B42),(IF($J$19="All","Y",IF(AND($J$19="1 per Lot",$F139="Y"),$F139,""))),"") ->  | N42: =U202 ->  | Z42: 38 | AA42: Lake | AG42: SPNWB440
C43: =IF(B42="","",B42+0.2) ->  | D43: =IF($K$13>=9,$P$110,"") ->  | E43: =IF($K$13>=9,$V$109,"") ->  | F43: =IF(C43="","",$V$100) ->  | G43: =$P$203 ->  | I43: =IF(ISNUMBER($B42),(IF($J$19="All","Y",IF(AND($J$19="1 per Lot",$F140="Y"),$F140,""))),"") ->  | N43: =U203 ->  | Z43: 39 | AA43: Lake of the Woods | AG43: SPNWB530
B44: =IF($K$13>=10,B42+1,"") ->  | C44: =IF(B44="","",B44+0.1) ->  | D44: =IF($K$13>=10,$O$110,"") ->  | E44: =IF($K$13>=10,$W$109,"") ->  | F44: =IF(C44="","",$W$100) ->  | G44: =$P$204 ->  | I44: =IF(ISNUMBER($B44),(IF($J$19="All","Y",IF(AND($J$19="1 per Lot",$F141="Y"),$F141,""))),"") ->  | N44: =U204 ->  | Z44: 40 | AA44: Le Sueur | AG44: SPNWB540
C45: =IF(B44="","",B44+0.2) ->  | D45: =IF($K$13>=10,$P$110,"") ->  | E45: =IF($K$13>=10,$X$109,"") ->  | F45: =IF(C45="","",$X$100) ->  | G45: =$P$205 ->  | I45: =IF(ISNUMBER($B44),(IF($J$19="All","Y",IF(AND($J$19="1 per Lot",$F142="Y"),$F142,""))),"") ->  | N45: =U205 ->  | Z45: 41 | AA45: Lincoln | AG45: SPNWC230
Z46: 42 | AA46: Lyon | AG46: SPNWC240
C47: Daily Production | G47: Remarks | Z47: 43 | AA47: Mahnomen | AG47: SPNWC330
C48: English Tons | E48: Lot | Z48: 44 | AA48: Marshall | AG48: SPNWC340
C49: 0-600 | E49: 1 | Z49: 45 | AA49: Martin | AG49: SPNWC430
C50: 601-1000 | E50: 2 | Z50: 46 | AA50: McLeod | AG50: SPNWC440
C51: 1001-1600 | E51: 3 | Z51: 47 | AA51: Meeker | AG51: SPNWC530
C52: 1601-2600 | E52: 4 | Z52: 48 | AA52: Mille Lacs | AG52: SPNWC540
C53: 2601-4600 | E53: 5 | Z53: 49 | AA53: Morrison
C54: >4601* | E54: 6 | G54: Street Inspector | Z54: 50 | AA54: Mower
Z55: 51 | AA55: Murray
C56: * Add one additional lot each additional 900 tons | Z56: 52 | AA56: Nicollet
Z57: 53 | AA57: Nobles
Z58: 54 | AA58: Norman
Z59: 55 | AA59: Olmsted
Z60: 56 | AA60: Otter Tail
Z61: 57 | AA61: Pennington
Z62: 58 | AA62: Pine
Z63: 59 | AA63: Pipestone
Z64: 60 | AA64: Polk
Z65: 61 | AA65: Pope
Z66: 62 | AA66: Ramsey
Z67: 63 | AA67: Red Lake
Z68: 64 | AA68: Redwood
Z69: 65 | AA69: Renville
Z70: 66 | AA70: Rice
Z71: 67 | AA71: Rock
Z72: 68 | AA72: Roseau
Z73: 69 | AA73: Scott
Z74: 70 | AA74: Sherburne
Z75: 71 | AA75: Sibley
Z76: 72 | AA76: St. Louis
Z77: 73 | AA77: Stearns
C78: Given information from User: | Z78: 74 | AA78: Steele
M79: Sum | Z79: 75 | AA79: Stevens
H80: Lane | I80: Lane | K80: Area | M80: Lane | Z80: 76 | AA80: Swift
H81: Length | I81: Area | J81: Station | K81: to test | L81: Direction | M81: Area | Z81: 77 | AA81: Todd
D82: Lane Name | E82: Lane Letter for Calcs. | F82: Begin Station | G82: End Station | H82: Lane Width | I82: (ft) | J82: (ft2) | K82: Random # | L82: (ft2) | N82: (ft2) | O82: Lane Name | P82: Lane Name | Z82: 78 | AA82: Traverse
D83: =CONCATENATE($D10,", ",$B10," Lift",", ",$C10) -> Driving, 1st Lift, NB | E83: A | F83: =E10 -> 0 | G83: 30000 | H83: 12 | I83: =ABS(G83-F83) -> 30000 | J83: =I83*H83 -> 360000 | K83: ='random numbers'!B200 -> 0.1940734386 | L83: =J83*K83 -> 69866.43791 | M83: =IF(E10<F10,1,IF(E10=F10,0,IF(E10>F10,-1,"NOT"))) -> 1 | N83: 0 | O83: =E83 -> A | P83: =CONCATENATE($D10,", ",$B10," Lift",", ",$C10) -> Driving, 1st Lift, NB | Z83: 79 | AA83: Wabasha
D84: =CONCATENATE($D11,", ",$B11," Lift",", ",$C11) -> , Lift, | E84: B | F84: 0 | G84: 0 | H84: 0 | I84: 0 | J84: 0 | K84: ='random numbers'!B201 -> 0.2217158675 | L84: =J84*K84 -> 0 | M84: 0 | N84: =J83 -> 360000 | O84: =E84 -> B | P84: , Lift, | Z84: 80 | AA84: Wadena
D85: , Lift, | E85: C | F85: 0 | G85: 0 | H85: 0 | I85: 0 | J85: 0 | K85: ='random numbers'!B202 -> 0.6155341864 | L85: 0 | M85: 0 | N85: =SUM($J$83:J84) -> 360000 | O85: C | P85: , Lift, | Z85: 81 | AA85: Waseca
D86: , Lift, | E86: D | F86: 0 | G86: 0 | H86: 0 | I86: 0 | J86: 0 | K86: ='random numbers'!B203 -> 0.1913424134 | L86: 0 | M86: 0 | N86: =SUM($J$83:J85) -> 360000 | O86: D | P86: , Lift, | Z86: 82 | AA86: Washington
D87: , Lift, | E87: E | F87: 0 | G87: 0 | H87: 0 | I87: 0 | J87: 0 | K87: ='random numbers'!B204 -> 0.6296281815 | L87: 0 | M87: 0 | N87: =SUM($J$83:J86) -> 360000 | O87: E | P87: , Lift, | Z87: 83 | AA87: Watonwan
D88: , Lift, | E88: F | F88: 0 | G88: 0 | H88: 0 | I88: 0 | J88: 0 | K88: ='random numbers'!B205 -> 0.5051395297 | L88: 0 | M88: 0 | N88: =SUM($J$83:J87) -> 360000 | O88: F | P88: , Lift, | Z88: 84 | AA88: Wilkin
D89: , Lift, | E89: G | F89: 0 | G89: 0 | H89: 0 | I89: 0 | J89: 0 | K89: ='random numbers'!B206 -> 0.2449995279 | L89: 0 | M89: 0 | N89: =SUM($J$83:J88) -> 360000 | O89: G | P89: , Lift, | Z89: 85 | AA89: Winona
D90: , Lift, | E90: H | F90: 0 | G90: 0 | H90: 0 | I90: 0 | J90: 0 | K90: ='random numbers'!B207 -> 0.1137374043 | L90: 0 | M90: 0 | N90: =SUM($J$83:J89) -> 360000 | O90: H | P90: , Lift, | Z90: 86 | AA90: Wright
D91: , Lift, | E91: I | F91: 0 | G91: 0 | H91: 0 | I91: 0 | J91: 0 | K91: ='random numbers'!B208 -> 0.6800701618 | L91: 0 | M91: 0 | N91: =SUM($J$83:J90) -> 360000 | O91: I | P91: , Lift, | Z91: 87 | AA91: Yellow Medicine
D92: , Lift, | E92: J | F92: 0 | G92: 0 | H92: 0 | I92: 0 | J92: 0 | K92: ='random numbers'!B209 -> 0.1509327292 | L92: 0 | M92: 0 | N92: =SUM($J$83:J91) -> 360000 | O92: J | P92: , Lift,
J94: Total Area | K94: # of Lots | L94: Area/Lot
J95: =SUM(J83:J92) -> 360000 | K95: =IF(K13="","",K13) -> 1 | L95: =J95/K95 -> 360000
C97: Determination of Mat Core Stationing:
D98: Lot # | E98: =$B$26 -> 1 | F98: =$B$26 -> 1 | G98: =$B$26+1 -> 2 | H98: =$B$26+1 -> 2 | I98: =$B$26+2 -> 3 | J98: =$B$26+2 -> 3 | K98: =$B$26+3 -> 4 | L98: =$B$26+3 -> 4 | M98: =$B$26+4 -> 5 | N98: =$B$26+4 -> 5 | O98: =$B$26+5 -> 6 | P98: =$B$26+5 -> 6 | Q98: =$B$26+6 -> 7 | R98: =$B$26+6 -> 7 | S98: =$B$26+7 -> 8 | T98: =$B$26+7 -> 8 | U98: =$B$26+8 -> 9 | V98: =$B$26+8 -> 9 | W98: =$B$26+9 -> 10 | X98: =$B$26+9 -> 10
E99: 1st Core | F99: 2nd Core | G99: 1st Core | H99: 2nd Core | I99: 1st Core | J99: 2nd Core | K99: 1st Core | L99: 2nd Core | M99: 1st Core | N99: 2nd Core | O99: 1st Core | P99: 2nd Core | Q99: 2nd Core | R99: 2nd Core | S99: 2nd Core | T99: 2nd Core | U99: 2nd Core | V99: 2nd Core | W99: 2nd Core | X99: 2nd Core
D100: Lot Random # A | E100: ='random numbers'!$B$15 -> 0.5776999593 | F100: ='random numbers'!$B$16 -> 0.198338747 | G100: ='random numbers'!$B$17 -> 0.8656582236 | H100: ='random numbers'!$B$18 -> 0.2134922743 | I100: ='random numbers'!$B$19 -> 0.3081126809 | J100: ='random numbers'!$B$20 -> 0.04738378525 | K100: ='random numbers'!$B$21 -> 0.4476734996 | L100: ='random numbers'!$B$22 -> 0.3299952745 | M100: ='random numbers'!$B$23 -> 0.6209571958 | N100: ='random numbers'!$B$24 -> 0.3717896938 | O100: ='random numbers'!$B$25 -> 0.9356374145 | P100: ='random numbers'!$B$26 -> 0.7325586081 | Q100: ='random numbers'!$B$27 -> 0.06390196085 | R100: ='random numbers'!$B$28 -> 0.3410511017 | S100: ='random numbers'!$B$29 -> 0.3835660815 | T100: ='random numbers'!$B$30 -> 0.571633935 | U100: ='random numbers'!$B$31 -> 0.2480919957 | V100: ='random numbers'!$B$32 -> 0.9342329502 | W100: ='random numbers'!$B$33 -> 0.4167646766 | X100: ='random numbers'!$B$34 -> 0.283805728
D101: Random Area | E101: =$L95*E100 -> 207971.9853 | F101: =$L95*F100 -> 71401.94893 | G101: =$L95+($L95*G100) -> 671636.9605 | H101: =$L95+($L95*H100) -> 436857.2187 | I101: =($L95*2)+($L95*I100) -> 830920.5651 | J101: =($L95*2)+($L95*J100) -> 737058.1627 | K101: =($L95*3)+($L95*K100) -> 1241162.46 | L101: =($L95*3)+($L95*L100) -> 1198798.299 | M101: =($L95*4)+($L95*M100) -> 1663544.59 | N101: =($L95*4)+($L95*N100) -> 1573844.29 | O101: =($L95*5)+($L95*O100) -> 2136829.469 | P101: =($L95*5)+($L95*P100) -> 2063721.099 | Q101: =($L95*6)+($L95*Q100) -> 2183004.706 | R101: =($L95*6)+($L95*R100) -> 2282778.397 | S101: =($L95*7)+($L95*S100) -> 2658083.789 | T101: =($L95*7)+($L95*T100) -> 2725788.217 | U101: =($L95*8)+($L95*U100) -> 2969313.118 | V101: =($L95*8)+($L95*V100) -> 3216323.862 | W101: =($L95*9)+($L95*W100) -> 3390035.284 | X101: =($L95*9)+($L95*X100) -> 3342170.062
D102: Lane Letter to take core | E102: =VLOOKUP(E101,$N$83:$O$92,2) -> A | F102: A | G102: J | H102: J | I102: J | J102: J | K102: J | L102: J | M102: J | N102: J | O102: J | P102: J | Q102: =VLOOKUP(Q101,$N$83:$O$92,2) -> J | R102: J | S102: J | T102: J | U102: J | V102: J | W102: J | X102: J
D103: Total Lane Area | E103: =VLOOKUP(E102,$E83:$J92,6,FALSE) -> 360000 | F103: 360000 | G103: 0 | H103: 0 | I103: 0 | J103: 0 | K103: 0 | L103: 0 | M103: 0 | N103: 0 | O103: 0 | P103: 0 | Q103: =VLOOKUP(Q102,$E83:$J92,6,FALSE) -> 0 | R103: 0 | S103: 0 | T103: 0 | U103: 0 | V103: 0 | W103: 0 | X103: 0
D104: Sum Lane Area | E104: =(VLOOKUP(E102,$E83:$N92,10,FALSE))+E103 -> 360000 | F104: 360000 | G104: 360000 | H104: 360000 | I104: 360000 | J104: 360000 | K104: 360000 | L104: 360000 | M104: 360000 | N104: 360000 | O104: 360000 | P104: 360000 | Q104: =(VLOOKUP(Q102,$E83:$N92,10,FALSE))+Q103 -> 360000 | R104: 360000 | S104: 360000 | T104: 360000 | U104: 360000 | V104: 360000 | W104: 360000 | X104: 360000
D105: Lane Width | E105: =VLOOKUP(E102,$E83:$H92,4,FALSE) -> 12 | F105: 12 | G105: 0 | H105: 0 | I105: 0 | J105: 0 | K105: 0 | L105: 0 | M105: 0 | N105: 0 | O105: 0 | P105: 0 | Q105: =VLOOKUP(Q102,$E83:$H92,4,FALSE) -> 0 | R105: 0 | S105: 0 | T105: 0 | U105: 0 | V105: 0 | W105: 0 | X105: 0
D106: Lane End Station | E106: =VLOOKUP(E102,$E83:$G92,3,FALSE) -> 30000 | F106: 30000 | G106: 0 | H106: 0 | I106: 0 | J106: 0 | K106: 0 | L106: 0 | M106: 0 | N106: 0 | O106: 0 | P106: 0 | Q106: =VLOOKUP(Q102,$E83:$G92,3,FALSE) -> 0 | R106: 0 | S106: 0 | T106: 0 | U106: 0 | V106: 0 | W106: 0 | X106: 0
D107: Direction | E107: =VLOOKUP(E102,$E$83:$M$92,9,FALSE) -> 1 | F107: 1 | G107: 0 | H107: 0 | I107: 0 | J107: 0 | K107: 0 | L107: 0 | M107: 0 | N107: 0 | O107: 0 | P107: 0 | Q107: =VLOOKUP(Q102,$E$83:$M$92,9,FALSE) -> 0 | R107: 0 | S107: 0 | T107: 0 | U107: 0 | V107: 0 | W107: 0 | X107: 0
D108: Distance from end of Station to core | E108: =(E104-E101)/E105 -> 12669.00122 | F108: =(F104-F101)/F105 -> 24049.83759 | Q108: =(Q104-Q101)/Q105 -> 
D109: Lane Station to Core | E109: =E106-(E107*(E108)) -> 17330.99878 | F109: 5950.162411 | Q109: =Q106-(Q107*(Q108)) ->  | X109: =X106-(X107*(X108)) -> 
D110: Lane Name | E110: =VLOOKUP(E102,$O83:$P92,2) -> Driving, 1st Lift, NB | F110: =VLOOKUP(F102,$O83:$P92,2) -> Driving, 1st Lift, NB | G110: , Lift, | H110: , Lift, | I110: , Lift, | J110: , Lift, | K110: , Lift, | L110: , Lift, | M110: , Lift, | N110: , Lift, | O110: , Lift, | P110: , Lift, | Q110: =VLOOKUP(Q102,$O83:$P92,2) -> , Lift, | R110: , Lift, | S110: , Lift, | T110: , Lift, | U110: , Lift, | V110: , Lift, | W110: , Lift, | X110: , Lift,
C117: Determination of which core the agency will test:
E119: Test | F119: Which
D120: =C23 -> Mat | E120: Companion | F120: Core to
D121: Core | E121: Random # | F121: Test
C122: =B25 -> Lot | D122: ID
C123: =B26 -> 1 | D123: 1.1 | E123: ='random numbers'!$B$150 -> 0.8918925524 | F123: =IF(E123<0.5,"Y","N") -> N
D124: 1.2 | F124: =IF(E123>0.5,"Y","N") -> Y
C125: =B28 ->  | E125: ='random numbers'!$B$151 -> 0.9430778623 | F125: =IF(E125<0.5,"Y","N") -> N
F126: =IF(E125>0.5,"Y","N") -> Y
C127: =B30 ->  | E127: ='random numbers'!$B$152 -> 0.3819901943 | F127: =IF(E127<0.5,"Y","N") -> Y
F128: =IF(E127>0.5,"Y","N") -> N
C129: =B32 ->  | E129: ='random numbers'!$B$153 -> 0.975348413 | F129: =IF(E129<0.5,"Y","N") -> N
F130: =IF(E129>0.5,"Y","N") -> Y
C131: =B34 ->  | E131: ='random numbers'!$B$154 -> 0.4024881124 | F131: =IF(E131<0.5,"Y","N") -> Y
F132: =IF(E131>0.5,"Y","N") -> N
C133: =B36 ->  | E133: ='random numbers'!$B$155 -> 0.6869259477 | F133: =IF(E133<0.5,"Y","N") -> N
F134: =IF(E133>0.5,"Y","N") -> Y
C135: =B38 ->  | D135: =C38 ->  | E135: ='random numbers'!$B$156 -> 0.5735416412 | F135: =IF(E135<0.5,"Y","N") -> N
D136: =C39 ->  | F136: =IF(E135>0.5,"Y","N") -> Y
C137: =B40 ->  | E137: ='random numbers'!$B$157 -> 0.3814069629 | F137: =IF(E137<0.5,"Y","N") -> Y
F138: =IF(E137>0.5,"Y","N") -> N
C139: =B42 ->  | E139: ='random numbers'!$B$158 -> 0.4921737909 | F139: =IF(E139<0.5,"Y","N") -> Y
F140: =IF(E139>0.5,"Y","N") -> N
C141: =B44 ->  | E141: ='random numbers'!$B$159 -> 0.7442849278 | F141: =IF(E141<0.5,"Y","N") -> N
F142: =IF(E141>0.5,"Y","N") -> Y
C147: Determine LJD cores to Test: | M147: Determine 2nd LJD Core
C148: 1st LJD Core
D149: 1ST | E149: 1ST | M149: 2nd | N149: 2nd | O149: overlap of values
D150: LJD | E150: LJD | F150: Is Mat | G150: (For | H150: Sub | I150: Decision Tree for | K150: Associated | M150: LJD | N150: LJD | O150: and determine | P150: Sub | Q150: Decision Tree for | S150: Associated
C151: Number of | D151: Lot | E151: Which | F151: Core | G151: Calculations) | H151: Core | I151: Mat Core ID | J151: =C183 -> Mat | K151: Mat | M151: Lot | N151: Which | O151: which 2nd | P151: Core | Q151: Mat Core ID | R151: =J151 -> Mat | S151: Mat
C152: LJD | D152: Random | E152: Core | F152: a Value ("v") | G152: Core | H152: Random | I152: that will be | J152: =C184 -> Core | K152: Core with | M152: Random | N152: Core | O152: LJD core to | P152: Random | Q152: that will be | R152: Core | S152: Core with
C153: Lots | D153: Number | E153: to Test | F153: or Blank ("l") | G153: # | H153: Numbers | I153: tested | J153: =C185 -> ID | K153: LJD Cores | M153: Number | N153: to Test | O153: use | P153: Numbers | Q153: tested | R153: ID | S153: LJD Cores
I154: (1=Yes, 2=No) | Q154: (1=Yes, 2=No)
C155: =IF($K$11<=5000,1,2) -> 1 | D155: ='random numbers'!$B$90 -> 0.287738204 | E155: =ROUND((($K$13)*D155),0) -> 0 | F155: =CELL("type",C186) -> v | G155: =IF(F155="v",1,"") -> 1 | H155: ='random numbers'!$B$160 -> 0.6722166538 | I155: =IF(AND(($E$160=$G155),(H155<0.5)),1,2) -> 2 | J155: =C186 -> 1.1 | K155: =VLOOKUP(1,I155:J174,2,FALSE) -> 1.2 | M155: ='random numbers'!$B$115 -> 0.9647727609 | N155: =IF($C$155>1,ROUND((($K$13)*M155),0),"") ->  | O155: =IF(N155="","",IF(N165<>$E$160,N165,IF(N166<>$E$160,N166,N167))) ->  | P155: ='random numbers'!$B$166 -> 0.4569112062 | Q155: =IF(AND(($O$155=$G155),(P155<0.5)),1,2) -> 2 | R155: 1.1 | S155: =VLOOKUP(1,Q155:R174,2,FALSE) -> 
D156: ='random numbers'!$B$91 -> 0.214769423 | E156: =ROUND((($K$13)*D156),0) -> 0 | F156: v | I156: =IF(AND(($E$160=$G$155),($H155>=0.5)),1,2) -> 1 | J156: 1.2 | Q156: =IF(AND(($O$155=$G$155),(P155>=0.5)),1,2) -> 2 | R156: 1.2
D157: ='random numbers'!$B$92 -> 0.4392299652 | E157: =ROUND((($K$13)*D157),0) -> 0 | F157: l | G157: =IF(F157="v",2,"") ->  | H157: ='random numbers'!$B$161 -> 0.5231260657 | I157: =IF(AND(($E$160=$G157),(H157<0.5)),1,2) -> 2 | M157: ='random numbers'!$B$116 -> 0.5910754204 | N157: =IF($C$155>1,ROUND((($K$13)*M157),0),"") ->  | P157: ='random numbers'!$B$167 -> 0.9052484632 | Q157: =IF(AND(($O$155=$G157),(P157<0.5)),1,2) -> 2
D158: ='random numbers'!$B$93 -> 0.4366857409 | E158: =ROUND((($K$13)*D158),0) -> 0 | F158: l | I158: =IF(AND(($E$160=$G$157),($H157>=0.5)),1,2) -> 2 | Q158: =IF(AND(($O$155=$G$157),(P157>=0.5)),1,2) -> 1
F159: l | G159: =IF(F159="v",3,"") ->  | H159: ='random numbers'!$B$162 -> 0.003784060478 | I159: =IF(AND(($E$160=$G159),(H159<0.5)),1,2) -> 2 | M159: ='random numbers'!$B$117 -> 0.2755829692 | N159: =IF($C$155>1,ROUND((($K$13)*M159),0),"") ->  | P159: ='random numbers'!$B$168 -> 0.5237987041 | Q159: =IF(AND(($O$155=$G159),(P159<0.5)),1,2) -> 2
E160: =IF(AND((E155>0),(E155<=$K$13)),E155,IF(AND((E156>0),(E156<=$K$13)),E156,IF(AND((E157>0),(E157<=$K$13)),E157,IF(AND((E158>0),(E158<=$K$13)),E158,1)))) -> 1 | F160: l | I160: =IF(AND(($E$160=$G$159),($H159>=0.5)),1,2) -> 2 | Q160: =IF(AND(($O$155=$G$159),(P159>=0.5)),1,2) -> 1
F161: l | G161: =IF(F161="v",4,"") ->  | H161: ='random numbers'!$B$163 -> 0.6491513848 | I161: =IF(AND(($E$160=$G161),(H161<0.5)),1,2) -> 2 | M161: ='random numbers'!$B$118 -> 0.4693137407 | N161: =IF($C$155>1,ROUND((($K$13)*M161),0),"") ->  | P161: ='random numbers'!$B$169 -> 0.464961946 | Q161: =IF(AND(($O$155=$G161),(P161<0.5)),1,2) -> 1
F162: l | I162: =IF(AND(($E$160=$G$161),($H161>=0.5)),1,2) -> 2 | Q162: =IF(AND(($O$155=$G$161),(P161>=0.5)),1,2) -> 2
F163: l | G163: =IF(F163="v",5,"") ->  | H163: ='random numbers'!$B$164 -> 0.888525486 | I163: =IF(AND(($E$160=$G163),(H163<0.5)),1,2) -> 2 | M163: ='random numbers'!$B$119 -> 0.3338611722 | N163: =IF($C$155>1,ROUND((($K$13)*M163),0),"") ->  | P163: ='random numbers'!$B$170 -> 0.1885303259 | Q163: =IF(AND(($O$155=$G163),(P163<0.5)),1,2) -> 1
F164: l | I164: =IF(AND(($E$160=$G$163),($H163>=0.5)),1,2) -> 2 | Q164: =IF(AND(($O$155=$G$163),(P163>=0.5)),1,2) -> 2
F165: =CELL("type",C196) -> l | G165: =IF(F165="v",6,"") ->  | H165: ='random numbers'!$B$165 -> 0.3314749599 | I165: =IF(AND(($E$160=$G165),(H165<0.5)),1,2) -> 2 | J165: =C196 ->  | M165: 1st Choice | N165: =IF(AND(($N$155>0),($N$155<=$K$13)),$N$155,IF(AND(($N$157>0),($N$157<=$K$13)),$N$157,IF(AND(($N$159>0),($N$159<=$K$13)),$N$159,1))) -> 1 | P165: ='random numbers'!$B$171 -> 0.5641508698 | Q165: =IF(AND(($O$155=$G165),(P165<0.5)),1,2) -> 2
F166: l | I166: =IF(AND(($E$160=$G$165),($H165>=0.5)),1,2) -> 2 | M166: 2nd Choice | N166: =IF(AND(($N$157>0),($N$157<=$K$13)),$N$157,IF(AND(($N$159>0),($N$159<=$K$13)),$N$159,1)) -> 1 | Q166: =IF(AND(($O$155=$G$165),(P165>=0.5)),1,2) -> 1
F167: l | G167: =IF(F167="v",7,"") ->  | H167: ='random numbers'!$B$166 -> 0.4569112062 | I167: =IF(AND(($E$160=$G167),(H167<0.5)),1,2) -> 2 | M167: 3rd Choice | N167: =IF(AND(($N$159>0),($N$159<=$K$13)),$N$159,1) -> 1 | P167: ='random numbers'!$B$172 -> 0.2358121872 | Q167: =IF(AND(($O$155=$G167),(P167<0.5)),1,2) -> 1 | R167: =J167 -> 
F168: l | I168: =IF(AND(($E$160=$G$167),($H167>=0.5)),1,2) -> 2 | Q168: =IF(AND(($O$155=$G$167),(P167>=0.5)),1,2) -> 2
F169: l | G169: =IF(F169="v",8,"") ->  | H169: ='random numbers'!$B$167 -> 0.9052484632 | I169: =IF(AND(($E$160=$G169),(H169<0.5)),1,2) -> 2 | P169: ='random numbers'!$B$173 -> 0.5127593875 | Q169: =IF(AND(($O$155=$G169),(P169<0.5)),1,2) -> 2
F170: l | I170: =IF(AND(($E$160=$G$169),($H169>=0.5)),1,2) -> 2 | Q170: =IF(AND(($O$155=$G$169),(P169>=0.5)),1,2) -> 1
F171: l | G171: =IF(F171="v",9,"") ->  | H171: ='random numbers'!$B$168 -> 0.5237987041 | I171: =IF(AND(($E$160=$G171),(H171<0.5)),1,2) -> 2 | P171: ='random numbers'!$B$174 -> 0.7436243296 | Q171: =IF(AND(($O$155=$G171),(P171<0.5)),1,2) -> 2
F172: l | I172: =IF(AND(($E$160=$G$171),($H171>=0.5)),1,2) -> 2 | Q172: =IF(AND(($O$155=$G$171),(P171>=0.5)),1,2) -> 1
F173: l | G173: =IF(F173="v",10,"") ->  | H173: ='random numbers'!$B$169 -> 0.464961946 | I173: =IF(AND(($E$160=$G173),(H173<0.5)),1,2) -> 2 | P173: ='random numbers'!$B$175 -> 0.05340987444 | Q173: =IF(AND(($O$155=$G173),(P173<0.5)),1,2) -> 1
F174: l | I174: =IF(AND(($E$160=$G$173),($H173>=0.5)),1,2) -> 2 | Q174: =IF(AND(($O$155=$G$173),(P173>=0.5)),1,2) -> 2
C178: Mat Core Offset Determination: | R178: LJD Cores | S178: LJD Core Labels:
I179: Before | J179: Confined | K179: Unconfined | L179: Non LJD | R179: Tested?
I180: Checking for | J180: Mat | K180: Mat | L180: Mat | M180: Decision Tree for | N180: Gearbox | O180: Right or
I181: LJD changes | J181: Offset | K181: Offset | L181: Core | M181: Mat Offset | N181: Offset | O181: Left of | P181: Mat Offset | R181: =IF(AND(($L$8="Yes"),($L$9="No")),"Yes","No") -> Yes | S181: Left LJD | T181: Left LJD Core | U181: Right LJD | V181: Right LJD Core
G182: Mat | H182: Lane | I182: Mat | L182: Offset | M182: that will be | N182: Random | O182: Gearbox | P182: that will | S182: Core ID | T182: Offset Label for Table | U182: Core ID | V182: Offset Label for Table
C183: =C23 -> Mat | D183: =I23 -> Test | E183: =E23 -> Mat | F183: =D23 -> 0 | G183: Offset | H183: Width | I183: Offset | M183: tested for LJD | N183: Numbers | O183: that will be | P183: be tested | S183: Label | U183: Label
C184: Core | D184: Companion | E184: Core | F184: =D24 -> Name | G184: Random# | H184: (ft.) | I184: (ft.) | J184: (ft.) | K184: (ft.) | L184: (ft.) | M184: (1=Yes, 2=No) | O184: tested | P184: (ft.)
C185: ID | D185: Core | E185: Station | O185: (Left = -2ft, Right= +2ft)
C186: 1.1 | E186: 17330.99878 | F186: =E102 -> A | G186: ='random numbers'!$B100 -> 0.2633690834 | H186: =VLOOKUP(F186,$E$83:$H$92,4,FALSE) -> 12 | I186: =IF(C186="","",IF(((H186*G186)<1),1,IF(((H186*G186)>(H186-1)),H186-1,H186*G186))) -> 3.160429001 | J186: =IF(C186="","",IF(M26="confined",IF((G186*H186)<0.5,0.5,IF(((G186*H186)>(H186-0.5)),(H186-0.5),(G186*H186))),"unconf/blank")) -> unconf/blank | K186: =IF(C186="","",IF(OR((M26="unconfined"),(M26="")),IF((G186*H186)<1,1,IF((G186*H186)>(H186-1),(H186-1),(G186*H186))),"confined")) -> 3.160429001 | L186: =IF(J186="unconf/blank",K186,J186) -> 3.160429001 | M186: =IF(OR(($K$155=C186),($S$155=C186)),1,2) -> 2 | N186: ='random numbers'!B180 -> 0.6471400261 | O186: =IF(N186<0.5,-2,2) -> 2 | P186: =IF(C186="","",IF($R$181="No",L186,IF(M186=1,(((H186)/2)+O186),I186))) -> 3.160429001 | S186: =IF(C186="","",IF($R$181="No","",IF(M186=1,C186+0.2,""))) ->  | T186: =IF(C186="","",IF($R$181="No","",IF(M186=1,"Core 0.5 ft. from Left Edge",""))) ->  | U186: =IF(C186="","",IF($R$181="No","",IF(M186=1,C186+0.3,""))) ->  | V186: =IF(C186="","",IF($R$181="No","",IF(M186=1,"Core 0.5 ft. from Right Edge",""))) -> 
C187: 1.2 | D187: Y | E187: 5950.162411 | F187: =F102 -> A | G187: ='random numbers'!$B101 -> 0.2342879176 | H187: 12 | I187: 2.811455011 | J187: unconf/blank | K187: 2.811455011 | L187: =IF(J187="unconf/blank",K187,J187) -> 2.811455011 | M187: 1 | N187: ='random numbers'!B181 -> 0.3300454021 | O187: -2 | P187: =IF(C187="","",IF($R$181="No",L187,IF(M187=1,(((H187)/2)+O187),I187))) -> 4 | S187: =IF(C186="","",IF($R$181="No","",IF(M187=1,C187+0.1,""))) -> 1.3 | T187: =IF(C186="","",IF($R$181="No","",IF(M187=1,"Core 0.5 ft. from Left Edge",""))) -> Core 0.5 ft. from Left Edge | U187: =IF(C186="","",IF($R$181="No","",IF(M187=1,C187+0.2,""))) -> 1.4 | V187: =IF(C186="","",IF($R$181="No","",IF(M187=1,"Core 0.5 ft. from Right Edge",""))) -> Core 0.5 ft. from Right Edge
F188: =G102 -> J | G188: ='random numbers'!$B102 -> 0.666441083 | H188: 0 | M188: 1 | N188: ='random numbers'!B182 -> 0.6379576921 | O188: 2 | S188: =IF(C188="","",IF($R$181="No","",IF(M188=1,C188+0.2,""))) ->  | T188: =IF(C188="","",IF($R$181="No","",IF(M188=1,"Core 0.5 ft. from Left Edge",""))) ->  | U188: =IF(C188="","",IF($R$181="No","",IF(M188=1,C188+0.3,""))) ->  | V188: =IF(C188="","",IF($R$181="No","",IF(M188=1,"Core 0.5 ft. from Right Edge",""))) -> 
F189: =H102 -> J | G189: ='random numbers'!$B103 -> 0.522752583 | H189: 0 | M189: 1 | N189: ='random numbers'!B183 -> 0.831835568 | O189: 2 | S189: =IF(C188="","",IF($R$181="No","",IF(M189=1,C189+0.1,""))) ->  | T189: =IF(C188="","",IF($R$181="No","",IF(M189=1,"Core 0.5 ft. from Left Edge",""))) ->  | U189: =IF(C188="","",IF($R$181="No","",IF(M189=1,C189+0.2,""))) ->  | V189: =IF(C188="","",IF($R$181="No","",IF(M189=1,"Core 0.5 ft. from Right Edge",""))) -> 
F190: =I102 -> J | G190: ='random numbers'!$B104 -> 0.9330050945 | H190: 0 | M190: 1 | N190: ='random numbers'!B184 -> 0.3348577023 | O190: -2 | S190: =IF(C190="","",IF($R$181="No","",IF(M190=1,C190+0.2,""))) ->  | T190: =IF(C190="","",IF($R$181="No","",IF(M190=1,"Core 0.5 ft. from Left Edge",""))) ->  | U190: =IF(C190="","",IF($R$181="No","",IF(M190=1,C190+0.3,""))) ->  | V190: =IF(C190="","",IF($R$181="No","",IF(M190=1,"Core 0.5 ft. from Right Edge",""))) -> 
F191: =J102 -> J | G191: ='random numbers'!$B105 -> 0.4521865249 | H191: 0 | M191: 1 | N191: ='random numbers'!B185 -> 0.2593240142 | O191: -2 | S191: =IF(C190="","",IF($R$181="No","",IF(M191=1,C191+0.1,""))) ->  | T191: =IF(C190="","",IF($R$181="No","",IF(M191=1,"Core 0.5 ft. from Left Edge",""))) ->  | U191: =IF(C190="","",IF($R$181="No","",IF(M191=1,C191+0.2,""))) ->  | V191: =IF(C190="","",IF($R$181="No","",IF(M191=1,"Core 0.5 ft. from Right Edge",""))) -> 
F192: =K102 -> J | G192: ='random numbers'!$B106 -> 0.5823253393 | H192: 0 | M192: 1 | N192: ='random numbers'!B186 -> 0.1228269339 | O192: -2 | S192: =IF(C192="","",IF($R$181="No","",IF(M192=1,C192+0.2,""))) ->  | T192: =IF(C192="","",IF($R$181="No","",IF(M192=1,"Core 0.5 ft. from Left Edge",""))) ->  | U192: =IF(C192="","",IF($R$181="No","",IF(M192=1,C192+0.3,""))) ->  | V192: =IF(C192="","",IF($R$181="No","",IF(M192=1,"Core 0.5 ft. from Right Edge",""))) -> 
F193: =L102 -> J | G193: ='random numbers'!$B107 -> 0.3163595796 | H193: 0 | M193: 1 | N193: ='random numbers'!B187 -> 0.8091126084 | O193: 2 | S193: =IF(C192="","",IF($R$181="No","",IF(M193=1,C193+0.1,""))) ->  | T193: =IF(C192="","",IF($R$181="No","",IF(M193=1,"Core 0.5 ft. from Left Edge",""))) ->  | U193: =IF(C192="","",IF($R$181="No","",IF(M193=1,C193+0.2,""))) ->  | V193: =IF(C192="","",IF($R$181="No","",IF(M193=1,"Core 0.5 ft. from Right Edge",""))) -> 
F194: =M102 -> J | G194: ='random numbers'!$B108 -> 0.178404808 | H194: 0 | M194: 1 | N194: ='random numbers'!B188 -> 0.3573722839 | O194: -2 | S194: =IF(C194="","",IF($R$181="No","",IF(M194=1,C194+0.2,""))) ->  | T194: =IF(C194="","",IF($R$181="No","",IF(M194=1,"Core 0.5 ft. from Left Edge",""))) ->  | U194: =IF(C194="","",IF($R$181="No","",IF(M194=1,C194+0.3,""))) ->  | V194: =IF(C194="","",IF($R$181="No","",IF(M194=1,"Core 0.5 ft. from Right Edge",""))) -> 
F195: =N102 -> J | G195: ='random numbers'!$B109 -> 0.08732527494 | H195: 0 | M195: 1 | N195: ='random numbers'!B189 -> 0.5787431598 | O195: 2 | S195: =IF(C194="","",IF($R$181="No","",IF(M195=1,C195+0.1,""))) ->  | T195: =IF(C194="","",IF($R$181="No","",IF(M195=1,"Core 0.5 ft. from Left Edge",""))) ->  | U195: =IF(C194="","",IF($R$181="No","",IF(M195=1,C195+0.2,""))) ->  | V195: =IF(C194="","",IF($R$181="No","",IF(M195=1,"Core 0.5 ft. from Right Edge",""))) -> 
C196: =C36 ->  | D196: =I36 ->  | E196: =E36 ->  | F196: =O102 -> J | G196: ='random numbers'!$B110 -> 0.8128954172 | H196: 0 | M196: 1 | N196: ='random numbers'!B190 -> 0.2536808252 | O196: -2 | S196: =IF(C196="","",IF($R$181="No","",IF(M196=1,C196+0.2,""))) ->  | T196: =IF(C196="","",IF($R$181="No","",IF(M196=1,"Core 0.5 ft. from Left Edge",""))) ->  | U196: =IF(C196="","",IF($R$181="No","",IF(M196=1,C196+0.3,""))) ->  | V196: =IF(C196="","",IF($R$181="No","",IF(M196=1,"Core 0.5 ft. from Right Edge",""))) -> 
C197: =C37 ->  | D197: =I37 ->  | E197: =E37 ->  | F197: =P102 -> J | G197: ='random numbers'!$B111 -> 0.4666903615 | H197: 0 | M197: 1 | N197: ='random numbers'!B191 -> 0.3992169499 | O197: -2 | S197: =IF(C196="","",IF($R$181="No","",IF(M197=1,C197+0.1,""))) ->  | T197: =IF(C196="","",IF($R$181="No","",IF(M197=1,"Core 0.5 ft. from Left Edge",""))) ->  | U197: =IF(C196="","",IF($R$181="No","",IF(M197=1,C197+0.2,""))) ->  | V197: =IF(C196="","",IF($R$181="No","",IF(M197=1,"Core 0.5 ft. from Right Edge",""))) -> 
C198: =C38 ->  | D198: =I38 ->  | E198: =E38 ->  | F198: =Q102 -> J | G198: ='random numbers'!$B112 -> 0.4512894154 | H198: =VLOOKUP(F198,$E$83:$H$92,4,FALSE) -> 0 | I198: =IF(C198="","",IF(((H198*G198)<1),1,IF(((H198*G198)>(H198-1)),H198-1,H198*G198))) ->  | L198: =IF(J198="unconf/blank",K198,J198) ->  | M198: =IF(OR(($K$155=C198),($S$155=C198)),1,2) -> 1 | N198: ='random numbers'!B192 -> 0.8890612125 | O198: =IF(N198<0.5,-2,2) -> 2 | P198: =IF(C198="","",IF($R$181="No",L198,IF(M198=1,(((H198)/2)+O198),I198))) ->  | S198: =IF(C198="","",IF($R$181="No","",IF(M198=1,C198+0.1,""))) ->  | T198: =IF(C198="","",IF($R$181="No","",IF(M198=1,"Core 0.5 ft. from Left Edge",""))) ->  | U198: =IF(C198="","",IF($R$181="No","",IF(M198=1,C198+0.2,""))) ->  | V198: =IF(C198="","",IF($R$181="No","",IF(M198=1,"Core 0.5 ft. from Right Edge",""))) -> 
F199: =R102 -> J | G199: ='random numbers'!$B113 -> 0.3470405936 | H199: 0 | M199: 1 | N199: ='random numbers'!B193 -> 0.3276705146 | O199: -2 | S199: =IF(C198="","",IF($R$181="No","",IF(M199=1,C199+0.1,""))) ->  | T199: =IF(C198="","",IF($R$181="No","",IF(M199=1,"Core 0.5 ft. from Left Edge",""))) ->  | U199: =IF(C198="","",IF($R$181="No","",IF(M199=1,C199+0.2,""))) ->  | V199: =IF(C198="","",IF($R$181="No","",IF(M199=1,"Core 0.5 ft. from Right Edge",""))) -> 
F200: =S102 -> J | G200: ='random numbers'!$B114 -> 0.0486420393 | H200: 0 | M200: 1 | N200: ='random numbers'!B194 -> 0.2249163389 | O200: -2 | S200: =IF(C200="","",IF($R$181="No","",IF(M200=1,C200+0.1,""))) ->  | T200: =IF(C200="","",IF($R$181="No","",IF(M200=1,"Core 0.5 ft. from Left Edge",""))) ->  | U200: =IF(C200="","",IF($R$181="No","",IF(M200=1,C200+0.2,""))) ->  | V200: =IF(C200="","",IF($R$181="No","",IF(M200=1,"Core 0.5 ft. from Right Edge",""))) -> 
F201: =T102 -> J | G201: ='random numbers'!$B115 -> 0.9647727609 | H201: 0 | M201: 1 | N201: ='random numbers'!B195 -> 0.0814576745 | O201: -2
F202: =U102 -> J | G202: ='random numbers'!$B116 -> 0.5910754204 | H202: 0 | M202: 1 | N202: ='random numbers'!B196 -> 0.304497242 | O202: -2 | S202: =IF(C202="","",IF($R$181="No","",IF(M202=1,C202+0.1,""))) ->  | T202: =IF(C202="","",IF($R$181="No","",IF(M202=1,"Core 0.5 ft. from Left Edge",""))) ->  | U202: =IF(C202="","",IF($R$181="No","",IF(M202=1,C202+0.2,""))) ->  | V202: =IF(C202="","",IF($R$181="No","",IF(M202=1,"Core 0.5 ft. from Right Edge",""))) -> 
F203: =V102 -> J | G203: ='random numbers'!$B117 -> 0.2755829692 | H203: 0 | M203: 1 | N203: ='random numbers'!B197 -> 0.9448878169 | O203: 2
F204: =W102 -> J | G204: ='random numbers'!$B118 -> 0.4693137407 | H204: 0 | M204: 1 | N204: ='random numbers'!B198 -> 0.03268826008 | O204: -2 | S204: =IF(C204="","",IF($R$181="No","",IF(M204=1,C204+0.1,""))) ->  | T204: =IF(C204="","",IF($R$181="No","",IF(M204=1,"Core 0.5 ft. from Left Edge",""))) ->  | V204: =IF(C204="","",IF($R$181="No","",IF(M204=1,"Core 0.5 ft. from Right Edge",""))) -> 
F205: =X102 -> J | G205: ='random numbers'!$B119 -> 0.3338611722 | H205: 0 | M205: 1 | N205: ='random numbers'!B199 -> 0.9298704267 | O205: 2
C214: Reset Random Numbers= CTRL m

Sheet random numbers (hidden)
A1: 0.9121362567 | B1: 0.1368784308
A2: 0.8455883265 | B2: 0.7386988401
A3: 0.625325501 | B3: 0.7158914208
A4: 0.5516932011 | B4: 0.873852253
A5: 0.6939615607 | B5: 0.8188540339
A6: 0.798314929 | B6: 0.664695859
A7: 0.3309274316 | B7: 0.27212888
A8: 0.5298275948 | B8: 0.4524543285
A9: 0.526602447 | B9: 0.5911044478
A10: 0.8018571138 | B10: 0.0737746954
A11: 0.8217657208 | B11: 0.1174021363
A12: 0.5587775707 | B12: 0.9491052628
A13: 0.6133212447 | B13: 0.2537395358
A14: 0.1188644171 | B14: 0.8781057596
A15: 0.8916483521 | B15: 0.5776999593
A16: 0.1667718887 | B16: 0.198338747
A17: 0.07582205534 | B17: 0.8656582236
A18: 0.9421468973 | B18: 0.2134922743
A19: 0.7496970296 | B19: 0.3081126809
A20: 0.09409070015 | B20: 0.04738378525
A21: 0.5920681357 | B21: 0.4476734996
A22: 0.8948734999 | B22: 0.3299952745
A23: 0.9241405129 | B23: 0.6209571958
A24: 0.3378043175 | B24: 0.3717896938
A25: 0.6902882457 | B25: 0.9356374145
A26: 0.8984156847 | B26: 0.7325586081
A27: 0.6182411313 | B27: 0.06390196085
A28: 0.3667542934 | B28: 0.3410511017
A29: 0.8393239379 | B29: 0.3835660815
A30: 0.4839318991 | B30: 0.571633935
A31: 0.428403914 | B31: 0.2480919957
A32: 0.9806079865 | B32: 0.9342329502
A33: 0.5732633471 | B33: 0.4167646766
A34: 0.8739258051 | B34: 0.283805728
A35: 0.2864525914 | B35: 0.9262738824
A36: 0.8456099033 | B36: 0.7055954933
A37: 0.3550886512 | B37: 0.9349524379
A38: 0.8266524076 | B38: 0.4824162722
A39: 0.7264752984 | B39: 0.3209207654
A40: 0.5581650734 | B40: 0.8002192974
A41: 0.1877295375 | B41: 0.06538766623
A42: 0.5483037233 | B42: 0.09819066525
A43: 0.2173135877 | B43: 0.7023573518
A44: 0.852694273 | B44: 0.2196302414
A45: 0.2744483352 | B45: 0.3659927249
A46: 0.07150304317 | B46: 0.7698618174
A47: 0.7560377717 | B47: 0.2168849111
A48: 0.1951093674 | B48: 0.3374245167
A49: 0.7369491458 | B49: 0.2784790397
A50: 0.7049051523 | B50: 0.4847954512
A51: 0.8796656728 | B51: 0.9649062753
A52: 0.1224281788 | B52: 0.6648936272
A53: 0.9876160026 | B53: 0.8314720988
A54: 0.3920525312 | B54: 0.4696151018
A55: 0.5066390634 | B55: 0.3290508389
A56: 0.7563548088 | B56: 0.8666493893
A57: 0.8202568889 | B57: 0.5936364532
A58: 0.6611739397 | B58: 0.330827117
A59: 0.9974773526 | B59: 0.5522995591
A60: 0.05088400841 | B60: 0.02624893188
A61: 0.9692925811 | B61: 0.8768007159
A62: 0.9811109304 | B62: 0.4454456568
A63: 0.2735520005 | B63: 0.5661099553
A64: 0.3962287903 | B64: 0.1618196964
A65: 0.3636171222 | B65: 0.1890825629
A66: 0.01517832279 | B66: 0.6016176939
A67: 0.3883908391 | B67: 0.06854110956
A68: 0.3147585392 | B68: 0.9916844368
A69: 0.8635515571 | B69: 0.9380137324
A70: 0.9679049253 | B70: 0.8892480135
A71: 0.5628343225 | B71: 0.8523786664
A72: 0.2928929329 | B72: 0.9499862194
A73: 0.6961924434 | B73: 0.3836650252
A74: 0.9714471102 | B74: 0.8406242132
A75: 0.2569349408 | B75: 0.3832598329
A76: 0.9939467907 | B76: 0.4523134232
A77: 0.8452281356 | B77: 0.8417713046
A78: 0.5569633245 | B78: 0.8210417032
A79: 0.7985888124 | B79: 0.6277983785
A80: 0.3392915726 | B80: 0.4113247395
A81: 0.5139209628 | B81: 0.1368564963
A82: 0.9247862101 | B82: 0.6694287062
A83: 0.6537078023 | B83: 0.1317096353
A84: 0.9981014729 | B84: 0.002374172211
A85: 0.02723735571 | B85: 0.3053585887
A86: 0.5333050489 | B86: 0.5889712572
A87: 0.8281512856 | B87: 0.3479354978
A88: 0.2418150902 | B88: 0.6791360378
A89: 0.859878242 | B89: 0.5487546325
A90: 0.8024264574 | B90: 0.287738204
A91: 0.7715194821 | B91: 0.214769423
A92: 0.2707650661 | B92: 0.4392299652
A93: 0.2744931579 | B93: 0.4366857409
A94: 0.1223634481 | B94: 0.3693062067
A95: 0.3131733537 | B95: 0.9839814305
A96: 0.616109848 | B96: 0.3398458958
A97: 0.9431859851 | B97: 0.3600820899
A98: 0.7586952448 | B98: 0.973384738
A99: 0.4368012547 | B99: 0.2989431024
A100: 0.4840414524 | B100: 0.2633690834
A101: 0.6656240821 | B101: 0.2342879176
A102: 0.4487723112 | B102: 0.666441083
A103: 0.8797536492 | B103: 0.522752583
A104: 0.4621758461 | B104: 0.9330050945
A105: 0.4982649684 | B105: 0.4521865249
A106: 0.452314496 | B106: 0.5823253393
A107: 0.3705919385 | B107: 0.3163595796
A108: 0.4748141766 | B108: 0.178404808
A109: 0.6473006606 | B109: 0.08732527494
A110: 0.9755138159 | B110: 0.8128954172
B111: 0.4666903615
B112: 0.4512894154
B113: 0.3470405936
B114: 0.0486420393
B115: 0.9647727609
B116: 0.5910754204
B117: 0.2755829692
B118: 0.4693137407
B119: 0.3338611722
B120: 0.8404996395
B121: 0.7072419524
B122: 0.8845418692
B123: 0.2075615525
B124: 0.1112442017
B125: 0.4694711566
B126: 0.1244655848
B127: 0.1579564214
B128: 0.4995615482
B129: 0.8360132575
B130: 0.6803568602
B131: 0.7737298608
B132: 0.05189943314
B133: 0.2300249934
B134: 0.5952454805
B135: 0.9882925153
B136: 0.7805259228
B137: 0.1772021651
B138: 0.6045440435
B139: 0.6579065919
B140: 0.9291543961
B141: 0.5089046359
B142: 0.5266729593
B143: 0.3898108602
B144: 0.4885685444
B145: 0.8152813315
B146: 0.9036854506
B147: 0.6203456521
B148: 0.9622473717
B149: 0.1483952403
B150: 0.8918925524
B151: 0.9430778623
B152: 0.3819901943
B153: 0.975348413
B154: 0.4024881124
B155: 0.6869259477
B156: 0.5735416412
B157: 0.3814069629
B158: 0.4921737909
B159: 0.7442849278
B160: 0.6722166538
B161: 0.5231260657
B162: 0.003784060478
B163: 0.6491513848
B164: 0.888525486
B165: 0.3314749599
B166: 0.4569112062
B167: 0.9052484632
B168: 0.5237987041
B169: 0.464961946
B170: 0.1885303259
B171: 0.5641508698
B172: 0.2358121872
B173: 0.5127593875
B174: 0.7436243296
B175: 0.05340987444
B176: 0.5544121265
B177: 0.4478287101
B178: 0.5158089399
B179: 0.254678309
B180: 0.6471400261
B181: 0.3300454021
B182: 0.6379576921
B183: 0.831835568
B184: 0.3348577023
B185: 0.2593240142
B186: 0.1228269339
B187: 0.8091126084
B188: 0.3573722839
B189: 0.5787431598
B190: 0.2536808252
B191: 0.3992169499
B192: 0.8890612125
B193: 0.3276705146
B194: 0.2249163389
B195: 0.0814576745
B196: 0.304497242
B197: 0.9448878169
B198: 0.03268826008
B199: 0.9298704267
B200: 0.1940734386
... 20 more rows

Sheet Core Wksht (hidden)
A1: TIME IN: | D1: TIME OUT: | G1: CORE WORKSHEET
A2: ='Core Stationing'!$D$5 -> SP | C2: ='Core Stationing'!$E$5 -> 0 | G2: MDR/Rec.# | I2: ='Core Stationing'!$N$12 -> 0 | L2: LJD Mat Core
A3: ='Core Stationing'!$H$5 -> TH | C3: ='Core Stationing'!$J$5 -> 0 | G3: Mix Type | I3: ='Core Stationing'!$N$18 -> SPWEB340 | L3: Total Tons
A4: Engineer | C4: ='Core Stationing'!$M$5 -> 0 | G4: Date Paved | I4: ='Core Stationing'!$N$8 -> 00:00:00 | L4: Density Tons
A5: Contractor | C5: ='Core Stationing'!$E$6 -> 0 | G5: Date Cored | I5: ='Core Stationing'!$N$10 -> 00:00:00 | L5: Misc. Tons
C6: Thickness | D6: AIR DRY | E6: CORE/PAN | K6: % WATER | M6: AVE. | N6: MAX. | O6: FINAL DENSITY
A7: LOT | B7: CORE # | C7: (mm)/in | D7: CORE | E7: (or dry wt.) | F7: PAN ID. | G7: PAN WT. | H7: DRY WT. | I7: SSD WT. | J7: IMM. WT. | K7: ABSORBED | L7: Sp GRAV. | M7: Sp GRAV. | N7: GRAVITY | O7: % 0F MAXIMUM
A8: ='Core Stationing'!$B$26 -> 1 | B8: ='Core Stationing'!$C$26 -> 1.1
B9: ='Core Stationing'!$C$27 -> 1.2
A10: COMP | B10: =B8 -> 1.1
A11: COMP | B11: =B9 -> 1.2
A13: ='Core Stationing'!$B$28 ->  | B13: ='Core Stationing'!$C$28 -> 
B14: ='Core Stationing'!$C$29 -> 
A15: COMP | B15: =B13 -> 
A16: COMP | B16: =B14 -> 
A18: ='Core Stationing'!$B$30 ->  | B18: ='Core Stationing'!$C$30 -> 
B19: ='Core Stationing'!$C$31 -> 
A20: COMP | B20: =B18 -> 
A21: COMP | B21: =B19 -> 
A23: ='Core Stationing'!$B$32 ->  | B23: ='Core Stationing'!$C$32 -> 
B24: ='Core Stationing'!$C$33 -> 
A25: COMP | B25: =B23 -> 
A26: COMP | B26: =B24 -> 
A28: ='Core Stationing'!$B$34 ->  | B28: ='Core Stationing'!$C$34 -> 
B29: ='Core Stationing'!$C$35 -> 
A30: COMP | B30: =B28 -> 
A31: COMP | B31: =B29 -> 
A33: ='Core Stationing'!$B$36 ->  | B33: ='Core Stationing'!$C$36 -> 
B34: ='Core Stationing'!$C$37 -> 
A35: COMP | B35: =B33 -> 
A36: COMP | B36: =B34 -> 
A38: COMPANION CORE, TESTED BY Mn/DOT, CHECK .030 TOLERANCE. | F38: QC | K38: QA

Sheet Blank Core Wksht (hidden)
A1: TIME IN: | D1: TIME OUT: | G1: CORE WORKSHEET
A2: ='Core Stationing'!$D$5 -> SP | G2: MDR/Rec.# | L2: LJD Mat Core
A3: ='Core Stationing'!$H$5 -> TH | G3: Mix Type | L3: Total Tons
A4: Engineer | G4: Date Paved | L4: Density Tons
A5: Contractor | G5: Date Cored | L5: Misc. Tons
C6: Thickness | D6: AIR DRY | E6: CORE/PAN | K6: % WATER | M6: AVE. | N6: MAX. | O6: FINAL DENSITY
A7: LOT | B7: CORE # | C7: (mm)/in | D7: CORE | E7: (or dry wt.) | F7: PAN ID. | G7: PAN WT. | H7: DRY WT. | I7: SSD WT. | J7: IMM. WT. | K7: ABSORBED | L7: Sp GRAV. | M7: Sp GRAV. | N7: GRAVITY | O7: % 0F MAXIMUM
A10: COMP
A11: COMP
A15: COMP
A16: COMP
A20: COMP
A21: COMP
A25: COMP
A26: COMP
A30: COMP
A31: COMP
A35: COMP
A36: COMP
A38: COMPANION CORE, TESTED BY Mn/DOT, CHECK .030 TOLERANCE. | F38: QC | K38: QA

Sheet Core Stationing Blank
F1: Bituminous Core Stationing | AH1: Asphalt
F2: =IF(L8="Yes","with Longitudinal Joint Density","") ->  | W2: Drop Down Box Lists | Z2: County | AE2: Show | AF2: Type | AG2: Mix | AH2: Binder | AL2: Density
D3: 2012-04-02 | W3: Project | X3: Road Type | Y3: LJD? | Z3: Number | AA3: County | AB3: Tons | AC3: Lots | AD3: Direction | AE3: Companion Cores? | AF3: of | AG3: Type | AH3: Grade | AI3: Lift | AJ3: Direction | AK3: Lane | AL3: Determination
W4: SP | X4: TH | Y4: Yes | AB4: 0.1 | AC4: 0 | AD4: =IF(E10<F10,1,IF(E10=F10,0,IF(E10>F10,-1,"NOT"))) -> 0 | AE4: All | AF4: Joint | AI4: 1st
D5: SP/SAP/CR | H5: TH/CSAHCR | L5: Engineer | W5: SAP | X5: CSAH | Y5: No | Z5: 1 | AA5: Aitkin | AB5: 1 | AC5: 1 | AD5: 0 | AE5: 1 per Lot | AG5: SPWEA230 | AH5: B= PG 58-28 | AI5: 2nd | AJ5: NB | AK5: Mainline | AL5: No
D6: Contractor | H6: Plant | W6: CP | X6: CR | Z6: 2 | AA6: Anoka | AB6: 601 | AC6: 2 | AD6: 0 | AE6: No | AF6: Confined | AG6: SPWEA240 | AH6: C= PG 58-34 | AI6: 3rd | AJ6: SB | AK6: Left | AL6: Yes
Z7: 3 | AA7: Becker | AB7: 1001 | AC7: 3 | AD7: 0 | AF7: Unconfined | AG7: SPWEA330 | AH7: E= PG 64-28 | AI7: 4th | AJ7: EB | AK7: Right
B8: Lift | C8: Direction | D8: Lane | E8: Begin Station | F8: End Station | G8: Lane Width | I8: Longitudinal Joint Density Project? | M8: Date Paved | Z8: 4 | AA8: Beltrami | AB8: 1601 | AC8: 4 | AD8: 0 | AG8: SPWEA340 | AH8: F= PG 64-34 | AI8: 5th | AJ8: WB | AK8: Left Center
E9: (ft) | F9: (ft) | G9: (ft) | I9: 1% Density Reduction? | M9: Day # | Z9: 5 | AA9: Benton | AB9: 3601 | AC9: 5 | AD9: 0 | AG9: SPWEA430 | AH9: L= PG 64-22 | AI9: 6th | AK9: Right Center
M10: Date Cored | Z10: 6 | AA10: Big Stone | AB10: 5001 | AC10: 6 | AD10: 0 | AG10: SPWEA440 | AH10: A= PG 52-34 | AI10: 7th | AK10: Center
I11: Total Density Tons Paved | Z11: 7 | AA11: Blue Earth | AD11: 0 | AG11: SPWEA530 | AH11: H= PG 70-28 | AK11: Left Shldr
I12: Tons Per Lot | M12: MDR/Rec# | Z12: 8 | AA12: Brown | AD12: 0 | AG12: SPWEA540 | AK12: Right Shldr
I13: Lots Used for Calcuations | M13: Bid Price/Ton | Z13: 9 | AA13: Carlton | AD13: 0 | AG13: SPWEB230 | AK13: Rt. Turn Lane
I14: Lots Required | Z14: 10 | AA14: Carver | AG14: SPWEB240 | AK14: Lt. Turn Lane
I15: Over-ride # Lots | Z15: 11 | AA15: Cass | AG15: SPWEB330 | AK15: Ramp
Z16: 12 | AA16: Chippewa | AG16: SPWEB340 | AK16: Loop
L17: Mix Spec | N17: 2360 | Z17: 13 | AA17: Chisago | AG17: SPWEB430
H18: Test Companion | L18: Mix Type | Z18: 14 | AA18: Clay | AG18: SPWEB440
H19: Cores Shown? | L19: Asphalt Binder Grade | Z19: 15 | AA19: Clearwater | AG19: SPWEB530
L20: Total Area Paved (yd2) | Z20: 16 | AA20: Cook | AG20: SPWEB540
Z21: 17 | AA21: Cottonwood | AG21: SPWEC230
J22: Left | K22: Left | L22: Left | M22: Right | N22: Right | O22: Right | Z22: 18 | AA22: Crow Wing | AG22: SPWEC240
C23: Mat | E23: Mat | F23: Mat | G23: Mat | H23: Mat | I23: Test | J23: LJD | K23: LJD | L23: LJD | M23: LJD | N23: LJD | O23: LJD | Z23: 19 | AA23: Dakota | AG23: SPWEC330
C24: Core | D24: Name | E24: Core | F24: Station | G24: Offset | H24: Offset | I24: Companion | J24: Joint | K24: Core | L24: Offset | M24: Joint | N24: Core | O24: Offset | Z24: 20 | AA24: Dodge | AG24: SPWEC340
B25: Lot | C25: ID | E25: Station | F25: Random # | G25: (ft.) | H25: Random # | I25: Core | J25: Type | K25: ID | L25: (ft.) | M25: Type | N25: ID | O25: (ft.) | Z25: 21 | AA25: Douglas | AG25: SPWEC430
Z26: 22 | AA26: Faribault | AG26: SPWEC440
Z27: 23 | AA27: Fillmore | AG27: SPWEC530
Z28: 24 | AA28: Freeborn | AG28: SPWEC540
Z29: 25 | AA29: Goodhue | AG29: SPNWA230
Z30: 26 | AA30: Grant | AG30: SPNWA240
Z31: 27 | AA31: Hennepin | AG31: SPNWA330
Z32: 28 | AA32: Houston | AG32: SPNWA340
Z33: 29 | AA33: Hubbard | AG33: SPNWA430
Z34: 30 | AA34: Isanti | AG34: SPNWA440
Z35: 31 | AA35: Itasca | AG35: SPNWA530
Z36: 32 | AA36: Jackson | AG36: SPNWA540
Z37: 33 | AA37: Kanabec | AG37: SPNWB230
Z38: 34 | AA38: Kanndiyohi | AG38: SPNWB240
Z39: 35 | AA39: Kittson | AG39: SPNWB330
Z40: 36 | AA40: Koochiching | AG40: SPNWB340
Z41: 37 | AA41: Lac qui Parle | AG41: SPNWB430
Z42: 38 | AA42: Lake | AG42: SPNWB440
Z43: 39 | AA43: Lake of the Woods | AG43: SPNWB530
Z44: 40 | AA44: Le Sueur | AG44: SPNWB540
Z45: 41 | AA45: Lincoln | AG45: SPNWC230
Z46: 42 | AA46: Lyon | AG46: SPNWC240
Z47: 43 | AA47: Mahnomen | AG47: SPNWC330
C48: Daily Production | G48: Remarks | Z48: 44 | AA48: Marshall | AG48: SPNWC340
C49: English Tons | E49: Lot | Z49: 45 | AA49: Martin | AG49: SPNWC430
C50: 0-600 | E50: 1 | Z50: 46 | AA50: McLeod | AG50: SPNWC440
C51: 601-1000 | E51: 2 | Z51: 47 | AA51: Meeker | AG51: SPNWC530
C52: 1001-1600 | E52: 3 | Z52: 48 | AA52: Mille Lacs | AG52: SPNWC540
C53: 1601-2600 | E53: 4 | Z53: 49 | AA53: Morrison
C54: 2601-4600 | E54: 5 | Z54: 50 | AA54: Mower
C55: > 4600* | E55: 6 | G55: Street Inspector | Z55: 51 | AA55: Murray
Z56: 52 | AA56: Nicollet
C57: * Add one additional lot each additional 900 tons | Z57: 53 | AA57: Nobles
Z58: 54 | AA58: Norman
Z59: 55 | AA59: Olmsted
Z60: 56 | AA60: Otter Tail
Z61: 57 | AA61: Pennington
Z62: 58 | AA62: Pine
Z63: 59 | AA63: Pipestone
Z64: 60 | AA64: Polk
Z65: 61 | AA65: Pope
Z66: 62 | AA66: Ramsey
Z67: 63 | AA67: Red Lake

Sheet Notes
B2: 2009-05-05 | D2: Problem: Inspectors would like to have the option to hard code in the number of lots for the day
D3: Changed language in Core Stationing cell I15 from "# of Additional Over-ride Lots" to "Over-ride # Lots"
D4: Modified logic in Core Stationing cell k13
D5: from =IF(K15>0,(VLOOKUP(K11,AB5:AC10,2)+K15),(VLOOKUP(K11,AB5:AC10,2)))
D6: to = if(((isnumber(k15))=true,k15,(vlookup(k11,AB5:AC10,2)))
B8: 2009-05-13 | D8: Problem: If the same lane name is used in mutiple rows with gaps in the stationing, the spreadsheet may
E9: choose a core stationing in exception areas that are in the lanes specified.
D10: Solution: | E10: Created a row a unique letter to identify the lane names for calculation purposes. These were inserted
E11: in "Core Stationing" E83:E92. Then the formulas were adjusted in the subsiquent cells to included the column E.
E12: Row 110 was added so the unique letter names are changed back to the user inputed names.
D14: Problem: | E14: Would like three choices for if companion cores are tested. (All, 1 per Lot, No)
D15: Solution: | E15: Modified "Core Stationing" J19 to have the choices (All, 1 per Lot, No) instead of (Yes, No)
E16: Modified equation for cells I26:I37
E17: from =if($k$14>=1,(if(and($j$19="Yes",$F123="Y"),$F123,""),"")
E18: to =if($k$14>=1,(if($J$19="All","Y",if(and($J$19="1 per Lot",$F123="Y"),$F123,""))),"")
B20: 2009-05-27 | D20: Problem: | E20: The drop down boxes are limiting for inputting data for inspectors (Lift, Direction, Lane)
D21: Solution: | E21: Remove drop down boxes so description can be manually chosen.
E22: Removed drop down (B10:B19)
E23: I have not determined a way in Excel to have a drop down box that can be manually overwritten.
B25: 2009-06-04 | D25: Problem: | E25: Cores were being randomly selected for mat cores from only the mat width -2 feet
D26: Solution: | E26: Recoded equations so the entire mat can be randomly selected.
D27: Changed equation in cells I168:I179
B29: 2009-06-04 | D29: Problem: | E29: XX.2 cores were not being offset by if LJD core was in that lot.
D30: Solution: | E30: Inserted missing equations.
D31: Copied equations into XX.2 missing cells in J168:L179
B33: 2009-06-09 | D33: Problem: | E33: Non LJD projects were coded so that the cores were no closer than 1 foot from the edge of the mat (confiined or unconfined)
D34: Solution: | E34: Reduced type of joint column to one, and recoded sheet so that unconfined and confined edges would have different calculations.
E35: Reduced type of joint column to one (I26:I37)
E36: Coded Non LJD core logic by inserted columns J168:L179
E37: Recoded logic in columnP168:P179 to search for non LJD cores in column L instead of I
B39: 2009-07-10 | D39: Problem: | E39: Needed a blank cores stationing sheet
D40: Solution: | E40: Created tab "Core Stationing Blank" with all cell cleared
B42: 2010-01-29 | D42: Problem: | E42: Type of joint pick list is only available once. It is needed for both edge cores.
D43: Solution: | E43: Copied pick list a second time are reformatted to put next to right and left edge cores.
B45: 2010-03-01 | D45: Problem: | E45: Field personnel would like cell N19 to display yd^2 instead of ft^2
D46: Solution: | E46: Made change to display yd^2
B48: 2011-06-27 | D48: Problem: | E48: Number of LJD core lots was not calculating correctly
D49: Solution: | E49: Fixed formula in C155. Instead of going off the number of lots, it will using the number of tons
D51: Problem: | E51: Extra LJD cores lots were being show when they did not exist
D52: Solution: | E52: Fixed formula in cells S198:V205. Incorrect cell references were being used
B54: 2012-04-23 | D54: Updated dates for 2012 and fixed formatting
B56: 2012-08-13 | D56: Reformatted Comments text box
